fUSD/lending_fUSD_20240118
["ID","MTS","AMOUNT","RATE_DAILY","PERIOD"]
[312036774,1705566662389,-500.0,0.00022739,2]
[312036775,1705566662399,-500.0,0.00022739,2]
[312036776,1705566662408,-1100.76,0.00022739,2]
[312036777,1705566662418,-500.0,0.00022739,2]
[312036778,1705566662428,-545.46,0.00022739,2]
[312036779,1705566662437,-620.85,0.00022739,2]
[312036780,1705566662446,-683.78,0.00022739,2]
[312036781,1705566662456,-1938.2,0.00022739,2]
[312036782,1705566662465,-500.0,0.00022739,2]
[312036783,1705566662475,-858.27,0.00022739,2]
[312036784,1705566662484,-319.5,0.00022739,2]
[312036785,1705566662493,-500.0,0.00022739,2]
[312036786,1705566662503,-827.38,0.00022739,2]
[312036787,1705566662512,-1465.16,0.00022739,2]
[312036788,1705566662522,-500.0,0.00022739,2]
[312036789,1705566662532,-500.0,0.00022739,2]
[312036790,1705566662541,-500.0,0.00022739,2]
[312036791,1705566662551,-500.0,0.00022739,2]
[312036792,1705566662561,-633.75,0.00022739,2]
[312036793,1705566662570,-294.4512513,0.00022739,2]
[312036794,1705566662580,-1411.46,0.00022739,2]
[312036795,1705566662589,-500.0,0.00022739,2]
[312036796,1705566662599,-1459.75,0.00022739,2]
[312036797,1705566662608,-638.13,0.00022739,2]
[312036798,1705566662618,-500.0,0.00022739,2]
[312036799,1705566662628,-483.79507982,0.00022739,2]
[312036800,1705566662638,-772.97,0.00022739,2]
[312036801,1705566662647,-1285.02,0.00022739,2]
[312036802,1705566662656,-500.0,0.00022739,2]
[312036803,1705566662666,-500.0,0.00022739,2]
[312036804,1705566662676,-500.0,0.00022739,2]
[312036805,1705566662686,-500.0,0.00022739,2]
[312036806,1705566662695,-716.34,0.00022739,2]
[312036807,1705566662704,-500.0,0.00022739,2]
[312036808,1705566662714,-730.75,0.00022739,2]
[312036809,1705566662724,-500.0,0.00022739,2]
[312036810,1705566662733,-500.0,0.00022739,2]
[312036811,1705566662743,-464.32,0.00022739,2]
[312036812,1705566662753,-500.0,0.00022739,2]
[312036813,1705566662762,-500.0,0.00022739,2]
[312036814,1705566662772,-500.0,0.00022739,2]
[312036815,1705566662782,-643.39,0.00022739,2]
[312036816,1705566662792,-939.84,0.00022739,2]
[312036817,1705566662802,-1656.84,0.00022739,2]
[312036818,1705566662812,-8356.87,0.00022739,2]
[312036819,1705566662821,-500.0,0.00022739,2]
[312036820,1705566662831,-252.33,0.00022739,2]
[312036821,1705566662840,-1030.6,0.00022739,2]
[312036822,1705566662850,-736.85,0.00022739,2]
[312036823,1705566663024,-500.0,0.00022739,2]
[312036824,1705566663033,-4410.71,0.00022739,2]
[312036825,1705566663043,-500.0,0.00022739,2]
[312036826,1705566663052,-500.0,0.00022739,2]
[312036827,1705566663061,-608.85,0.00022739,2]
[312036828,1705566663070,-500.0,0.00022739,2]
[312036829,1705566663079,-627.22,0.00022739,2]
[312036830,1705566663091,-522.72,0.00022739,2]
[312036831,1705566663101,-500.0,0.00022739,2]
[312036832,1705566663110,-785.47,0.00022739,2]
[312036833,1705566663119,-515.18,0.00022739,2]
[312036834,1705566663129,-500.0,0.00022739,2]
[312036835,1705566663138,-500.0,0.00022739,5]
[312036836,1705566663147,-500.0,0.00022739,2]
[312036837,1705566663156,-500.0,0.00022739,2]
[312036838,1705566663166,-305.04,0.00022739,2]
[312036839,1705566663175,-664.83,0.00022739,2]
[312036840,1705566663184,-761.31,0.00022739,2]
[312036841,1705566663193,-710.57,0.00022739,2]
[312036842,1705566663203,-500.0,0.00022739,2]
[312036843,1705566663212,-999.61,0.00022739,2]
[312036844,1705566663222,-500.0,0.00022739,2]
[312036845,1705566663231,-1968.87,0.00022739,2]
[312036846,1705566663240,-500.0,0.00022739,2]
[312036847,1705566663249,-1221.43,0.00022739,2]
[312036848,1705566663258,-1397.21,0.00022739,2]
[312036849,1705566663269,-549.98,0.00022739,2]
[312036850,1705566663278,-583.94,0.00022739,2]
[312036851,1705566663287,-172.89,0.00022739,2]
[312036852,1705566663297,-500.0,0.00022739,2]
[312036853,1705566663307,-829.24,0.00022739,2]
[312036854,1705566663318,-972.67,0.00022739,2]
[312036855,1705566663328,-1293.65,0.00022739,2]
[312036856,1705566663337,-500.0,0.00022739,2]
[312036857,1705566663346,-906.25,0.00022739,2]
[312036858,1705566663356,-1296.47,0.00022739,2]
[312036859,1705566663365,-500.0,0.00022739,2]
[312036860,1705566663375,-500.0,0.00022739,2]
[312036861,1705566663384,-1810.88,0.00022739,2]
[312036862,1705566663393,-500.0,0.00022739,2]
[312036863,1705566663402,-500.0,0.00022739,2]
[312036864,1705566663412,-824.69,0.00022739,2]
[312036865,1705566663421,-500.0,0.00022739,2]
[312036866,1705566663430,-500.0,0.00022739,2]
[312036867,1705566663440,-587.44,0.00022739,2]
[312036868,1705566663450,-1116.14,0.00022739,2]
[312036869,1705566663459,-500.0,0.00022739,2]
[312036870,1705566663469,-551.95163508,0.00022739,2]
[312036871,1705566663479,-500.0,0.00022739,2]
[312036872,1705566663488,-500.0,0.00022739,2]
[312036873,1705566663498,-1943.83,0.00022739,2]
[312036874,1705566663508,-500.0,0.00022739,2]
[312036875,1705566663520,-926.7,0.00022739,2]
[312036876,1705566663531,-551.25,0.00022739,2]
[312036877,1705566663541,-500.0,0.00022739,2]
[312036878,1705566663551,-500.0,0.00022739,2]
[312036879,1705566663561,-1038.25,0.00022739,2]
[312036880,1705566663571,-500.0,0.00022739,2]
[312036881,1705566663581,-500.0,0.00022739,2]
[312036882,1705566663592,-561.44,0.00022739,2]
[312036883,1705566663602,-500.0,0.00022739,2]
[312036884,1705566663612,-539.16,0.00022739,2]
[312036885,1705566663622,-267.09573947,0.00022739,2]
[312036886,1705566663632,-500.0,0.00022739,2]
[312036887,1705566663642,-500.0,0.00022739,2]
[312036888,1705566663651,-862.51,0.00022739,5]
[312036889,1705566663661,-1055.53,0.00022739,2]
[312036890,1705566663671,-594.99,0.00022739,2]
[312036891,1705566663680,-153.11,0.00022744,2]
[312036892,1705566663690,-500.0,0.00022754,7]
[312036893,1705566663700,-153.0,0.00022766,2]
[312036894,1705566663710,-153.0,0.00022766,2]
[312036895,1705566663720,-153.0,0.00022766,2]
[312036896,1705566663730,-4907.21632641,0.0002277,2]
[312036897,1705566663739,-301.54124176,0.0002277,2]
[312036898,1705566663749,-161.72835411,0.0002277,2]
[312036899,1705566663759,-262.71,0.00022781,2]
[312036900,1705566663771,-1000.0,0.000228,3]
[312036901,1705566663780,-1569.33121144,0.000228,3]
[312036902,1705566663790,-1080.18851156,0.000228,2]
[312036903,1705566663799,-543418.99785208,0.000228,2]
[312036904,1705566663808,-155.2166569,0.000228,2]
[312036905,1705566663818,-166.83204197,0.000228,2]
[312036906,1705566663828,-33446.01435889,0.00022802,2]
[312036907,1705566663837,-92063.04107599,0.0002283,2]
[312036908,1705566663847,-52106.79984507,0.00022832,2]
[312036909,1705566663856,-2000.0,0.00022835,2]
[312036910,1705566663865,-200.0,0.00022835,2]
[312036911,1705566663874,-500.0,0.00022838,2]
[312036912,1705566663884,-500.0,0.00022847,2]
[312036913,1705566663893,-500.0,0.00022856,2]
[312036914,1705566663902,-500.0,0.00022856,2]
[312036915,1705566663912,-500.0,0.00022865,2]
[312036916,1705566663921,-500.0,0.00022865,2]
[312036917,1705566663931,-157.61,0.00022872,2]
[312036918,1705566663940,-500.0,0.00022874,2]
[312036919,1705566663950,-500.0,0.00022874,2]
[312036920,1705566663959,-500.0,0.00022882,2]
[312036921,1705566663969,-500.0,0.00022882,2]
[312036922,1705566663978,-95757.84753612,0.0002289,2]
[312036923,1705566663988,-500.0,0.00022891,2]
[312036924,1705566663998,-500.0,0.00022891,2]
[312036925,1705566664007,-153.36,0.00022892,2]
[312036926,1705566664019,-11462.18639681,0.00022897,2]
[312036927,1705566664029,-1000.0,0.000229,2]
[312036928,1705566664038,-500.0,0.000229,2]
[312036929,1705566664048,-308.10633593,0.000229,2]
[312036930,1705566664057,-500.0,0.000229,2]
[312036931,1705566664067,-225.16810668,0.000229,2]
[312036932,1705566664076,-178.22498737,0.000229,2]
[312036933,1705566664086,-178.22498703,0.000229,2]
[312036934,1705566664096,-178.22498703,0.000229,2]
[312036935,1705566664105,-178.22498703,0.000229,2]
[312036936,1705566664115,-178.22498703,0.000229,2]
[312036937,1705566664124,-178.22498703,0.000229,2]
[312036938,1705566664134,-178.22498703,0.000229,2]
[312036939,1705566664143,-178.22498703,0.000229,2]
[312036940,1705566664153,-178.22498703,0.000229,2]
[312036941,1705566664163,-178.22498703,0.000229,2]
[312036942,1705566664172,-178.22498703,0.000229,2]
[312036943,1705566664182,-178.22498703,0.000229,2]
[312036944,1705566664192,-178.22498703,0.000229,2]
[312036945,1705566664202,-178.22498703,0.000229,2]
[312036946,1705566664212,-178.22498703,0.000229,2]
[312036947,1705566664222,-178.22498703,0.000229,2]
[312036948,1705566664232,-178.22498703,0.000229,2]
[312036949,1705566664242,-178.22498703,0.000229,2]
[312036950,1705566664251,-178.22498703,0.000229,2]
[312036951,1705566664261,-178.22498703,0.000229,2]
[312036952,1705566664273,-178.22498703,0.000229,2]
[312036953,1705566664283,-178.22498703,0.000229,2]
[312036954,1705566664293,-178.22498703,0.000229,2]
[312036955,1705566664306,-178.22498703,0.000229,2]
[312036956,1705566664318,-178.22498703,0.000229,2]
[312036957,1705566664329,-178.22498703,0.000229,2]
[312036958,1705566664340,-178.22498703,0.000229,2]
[312036959,1705566664350,-178.22498703,0.000229,2]
[312036960,1705566664360,-178.22498703,0.000229,2]
[312036961,1705566664370,-178.22498703,0.000229,2]
[312036962,1705566664380,-692.45954666,0.000229,2]
[312036963,1705566664392,-692.45954647,0.000229,2]
[312036964,1705566664402,-692.45954647,0.000229,2]
[312036965,1705566664411,-692.45954647,0.000229,2]
[312036966,1705566664421,-692.45954647,0.000229,2]
[312036967,1705566664433,-692.45954647,0.000229,2]
[312036968,1705566664443,-692.45954647,0.000229,2]
[312036969,1705566664453,-692.45954647,0.000229,2]
[312036970,1705566664463,-692.45954647,0.000229,2]
[312036971,1705566664472,-692.45954647,0.000229,2]
[312036972,1705566664481,-692.45954647,0.000229,2]
[312036973,1705566664490,-692.45954647,0.000229,2]
[312036974,1705566664499,-692.45954647,0.000229,2]
[312036975,1705566664509,-692.45954647,0.000229,2]
[312036976,1705566664519,-211.3584396,0.000229,2]
[312036977,1705566664529,-692.45954647,0.000229,2]
[312036978,1705566664540,-692.45954647,0.000229,2]
[312036979,1705566664549,-692.45954647,0.000229,2]
[312036980,1705566664559,-692.45954647,0.000229,2]
[312036981,1705566664568,-692.45954647,0.000229,2]
[312036982,1705566664577,-692.45954647,0.000229,2]
[312036983,1705566664587,-241.56767146,0.000229,2]
[312036984,1705566664596,-3291.08076589,0.000229,2]
[312036985,1705566664606,-12317.54835733,0.000229,2]
[312036986,1705566664615,-33446.01435889,0.000229,2]
[312036987,1705566664625,-178.22498703,0.00022925,2]
[312036988,1705566664634,-166.83204193,0.00022937,2]
[312036989,1705566664645,-178.22498703,0.00022962,2]
[312036990,1705566664654,-22044.65856346,0.0002298,2]
[312036991,1705566664663,-300.0,0.00022983,2]
[312036992,1705566664673,-314.34919808,0.00022983,2]
[312036993,1705566664682,-169360.0466855,0.00022984,2]
[312036994,1705566664691,-1659.6130735,0.00022984,2]
[312036995,1705566664700,-331.9226147,0.00022984,2]
[312036996,1705566664710,-37692.9485083,0.00022984,2]
[312036997,1705566664719,-8974.3285059,0.00022984,2]
[312036998,1705566664729,-146415.1243333,0.00022984,2]
[312036999,1705566664739,-29603.0406147,0.00022984,2]
[312037000,1705566664749,-17411.1044,0.00022984,2]
[312037001,1705566664759,-1000.00000099,0.0002299,2]
[312037002,1705566664769,-2444.308316,0.00022995,2]
[312037003,1705566664779,-3666.462474,0.00022995,2]
[312037004,1705566664788,-4888.616632,0.00022995,2]
[312037005,1705566664797,-15899.264077,0.00022995,2]
[312037006,1705566664806,-23848.896116,0.00022995,2]
[312037007,1705566664815,-31798.528155,0.00022995,2]
[312037008,1705566664825,-6110.770791,0.00022996,2]
[312037009,1705566664834,-39748.160194,0.00022996,2]
[312037010,1705566664843,-8555.079107,0.00022997,2]
[312037011,1705566664852,-55647.424271,0.00022997,2]
[312037012,1705566664861,-300.0,0.00022997,2]
[312037013,1705566664872,-239257.31324799,0.00022998,2]
[312037014,1705566664882,-393877.57551934,0.00022998,2]
[312037015,1705566665702,-500.0,0.00021917,2]
[312037016,1705566665712,-612.57,0.00021917,2]
[312037017,1705566665722,-150.0,0.00022042,2]
[312037018,1705566665732,-541.23,0.00022191,2]
[312037019,1705566665742,-541.23,0.00022465,2]
[312037020,1705566665752,-304.57068396,0.00022739,2]
[312037021,1705566666064,-956.98630892,0.0002228,2]
[312037022,1705566666073,-236.65931604,0.00022739,2]
[312037023,1705566666083,-762.16747505,0.00022998,2]
[312037024,1705566666099,-261.99393107,0.00022998,2]
[312037025,1705566666114,-3941.34405645,0.00022998,2]
[312037026,1705566666126,-945.08,0.00022998,2]
[312037027,1705566666584,-419.57986073,0.00022998,2]
[312037028,1705566666596,-357.191244,0.00022998,2]
[312037029,1705566666608,-1732.17608969,0.00022998,2]
[312037030,1705566666620,-754.15955611,0.00022998,2]
[312037031,1705566691360,360.0,0.00020491,2]
[312037032,1705566691771,1891.445896,0.00035315,30]
[312037033,1705566720739,250.0,0.00035315,30]
[312037034,1705566721320,250.0,0.00035315,30]
[312037035,1705566721820,382.321511,0.00035315,30]
[312037036,1705566738908,518.32067458,0.00020501,2]
[312037037,1705566750832,174.71,0.00020491,2]
[312037038,1705566767581,1044.05266194,0.00020501,2]
[312037039,1705566789321,305.638467,0.00035315,30]
[312037040,1705566855788,500.0,0.00035315,120]
[312037041,1705566974837,357.03,0.00019359,2]
[312037042,1705567110765,171.07,0.00020491,2]
[312037043,1705567186987,1970.502977,0.00035224,30]
[312037045,1705567252700,-396.83,0.00020502,2]
[312037080,1705567414230,207.0,0.00020469,2]
[312037082,1705567429618,351.47,0.00018918,2]
[312037084,1705567591273,1891.445896,0.00035225,30]
[312037085,1705567609994,150.0,0.00035225,30]
[312037086,1705567688721,305.638467,0.00035225,30]
[312037164,1705567832113,-288.0,0.00020717,2]
[312037165,1705567832123,-149.66595974,0.0002073,2]
[312037166,1705567832134,-252.59404026,0.0002073,2]
[312037167,1705567832144,-59.46664295,0.00020754,2]
[312037168,1705567832155,-381.79850293,0.00020754,2]
[312037169,1705567832167,-3725.37485412,0.00020754,2]
[312037170,1705567832176,-159.64015465,0.00020761,2]
[312037171,1705567832186,-168.64,0.00020779,2]
[312037172,1705567832196,-223.17,0.00020805,2]
[312037173,1705567832206,-153.2,0.0002083,2]
[312037174,1705567832215,-23900.0,0.00020844,2]
[312037175,1705567832225,-200.0,0.00020861,2]
[312037176,1705567832234,-2000.0,0.00020882,2]
[312037177,1705567832243,-165.07,0.00020884,2]
[312037178,1705567832252,-500.0,0.00020947,2]
[312037179,1705567832261,-712.0,0.00021022,2]
[312037180,1705567832270,-164.39,0.0002109,2]
[312037181,1705567832279,-351.47,0.00021182,2]
[312037182,1705567832289,-162.75,0.00021301,2]
[312037183,1705567832298,-168.64,0.0002132,2]
[312037184,1705567832307,-6129.46,0.00021644,2]
[312037185,1705567832316,-161.23,0.00021688,2]
[312037186,1705567832326,-402.26,0.00021709,2]
[312037187,1705567832335,-194.3986083,0.00021739,2]
[312037188,1705567832345,-2472.30301271,0.00021789,2]
[312037189,1705567832354,-675.48115562,0.00021816,2]
[312037190,1705567832363,-5483.40433686,0.00021861,2]
[312037191,1705567832383,-1270.80557788,0.00021861,2]
[312037192,1705567832398,-3964.69407762,0.00021861,2]
[312037193,1705567832409,-611.97438854,0.00021861,2]
[312037194,1705567832429,-10925.4521482,0.00021861,2]
[312037195,1705567832440,-25372.13064552,0.00021861,2]
[312037197,1705567832461,-2080.33042751,0.00021861,2]
[312037199,1705567832472,-790.16996557,0.00021861,2]
[312037201,1705567832490,-359.03835404,0.00021861,2]
[312037202,1705567832502,-4461.02589026,0.00021861,2]
[312037203,1705567832513,-1713.03735611,0.00021861,2]
[312037204,1705567832524,-393.45872412,0.00021861,2]
[312037205,1705567832535,-459.2369133,0.00021861,2]
[312037209,1705567838399,-211.67296316,0.00021081,2]
[312037210,1705567838497,-1805.98923684,0.00021081,2]
[312037211,1705567838506,-305.17845736,0.00021861,2]
[312037212,1705567838663,-1374.66600842,0.00021861,2]
[312037213,1705567838726,-123838.62511587,0.00021861,2]
[312037214,1705567838735,-168.64,0.00021862,2]
[312037215,1705567838744,-129364.52515324,0.000219,2]
[312037216,1705567838754,-375359.55731108,0.000219,2]
[312037217,1705567838763,-160.82,0.00021916,2]
[312037218,1705567838772,-500.0,0.00021917,2]
[312037219,1705567838782,-502.14007724,0.00021917,2]
[312037220,1705567838791,-500.0,0.00021917,2]
[312037221,1705567838801,-500.0,0.00021917,2]
[312037222,1705567838811,-500.0,0.00021917,2]
[312037223,1705567838820,-500.0,0.00021917,2]
[312037224,1705567838829,-505.09727432,0.00021917,2]
[312037226,1705567838838,-527.53871258,0.00021917,2]
[312037228,1705567838847,-500.0,0.00021917,2]
[312037230,1705567838857,-500.0,0.00021917,2]
[312037232,1705567838866,-220.35029306,0.00021917,2]
[312037234,1705567838875,-509.04953353,0.00021917,2]
[312037236,1705567838884,-500.0,0.00021917,2]
[312037238,1705567838893,-500.0,0.00021917,2]
[312037240,1705567838903,-500.0,0.00021917,2]
[312037242,1705567838912,-500.0,0.00021917,2]
[312037244,1705567838921,-500.0,0.00021917,2]
[312037249,1705567838931,-500.0,0.00021917,2]
[312037250,1705567839152,-500.0,0.00021917,2]
[312037251,1705567839161,-500.0,0.00021917,2]
[312037252,1705567839170,-500.0,0.00021917,2]
[312037253,1705567839179,-500.0,0.00021917,2]
[312037254,1705567839189,-500.0,0.00021917,2]
[312037255,1705567839198,-500.0,0.00021917,2]
[312037256,1705567839207,-500.0,0.00021917,2]
[312037257,1705567839216,-500.0,0.00021917,2]
[312037258,1705567839225,-500.0,0.00021917,2]
[312037259,1705567839234,-500.0,0.00021917,2]
[312037260,1705567839243,-500.0,0.00021917,2]
[312037261,1705567839252,-500.0,0.00021917,2]
[312037262,1705567839261,-500.0,0.00021917,2]
[312037263,1705567839270,-500.0,0.00021917,2]
[312037264,1705567839279,-500.0,0.00021917,2]
[312037265,1705567839288,-500.0,0.00021917,2]
[312037266,1705567839298,-500.0,0.00021917,2]
[312037267,1705567839307,-500.0,0.00021917,2]
[312037268,1705567839316,-500.0,0.00021917,2]
[312037269,1705567839326,-500.0,0.00021917,2]
[312037270,1705567839335,-500.0,0.00021917,2]
[312037271,1705567839344,-500.0,0.00021917,2]
[312037272,1705567839353,-500.0,0.00021917,2]
[312037273,1705567839362,-502.95356131,0.00021917,2]
[312037274,1705567839372,-500.0,0.00021917,2]
[312037275,1705567839381,-500.0,0.00021917,2]
[312037276,1705567839390,-500.0,0.00021917,2]
[312037277,1705567839400,-500.0,0.00021917,2]
[312037278,1705567839409,-500.0,0.00021917,2]
[312037279,1705567839418,-500.0,0.00021917,2]
[312037280,1705567839427,-500.0,0.00021917,2]
[312037281,1705567839436,-500.0,0.00021917,2]
[312037282,1705567839445,-500.0,0.00021917,2]
[312037283,1705567839454,-447.20477088,0.00021917,2]
[312037284,1705567839463,-500.0,0.00021917,2]
[312037285,1705567839472,-500.0,0.00021917,2]
[312037286,1705567839481,-500.0,0.00021917,2]
[312037287,1705567839490,-503.46634293,0.00021917,2]
[312037288,1705567839499,-500.0,0.00021917,2]
[312037289,1705567839508,-500.0,0.00021917,2]
[312037290,1705567839517,-500.0,0.00021917,2]
[312037291,1705567839526,-500.0,0.00021917,2]
[312037292,1705567839535,-500.0,0.00021917,2]
[312037293,1705567839543,-506.59969025,0.00021917,2]
[312037294,1705567839553,-500.0,0.00021917,2]
[312037295,1705567839562,-500.0,0.00021917,2]
[312037296,1705567839571,-500.0,0.00021917,2]
[312037297,1705567839580,-500.0,0.00021917,2]
[312037298,1705567839589,-357.62149639,0.00021917,2]
[312037299,1705567839599,-500.0,0.00021917,2]
[312037300,1705567839608,-500.0,0.00021917,2]
[312037301,1705567839617,-505.7229688,0.00021917,2]
[312037302,1705567839627,-500.0,0.00021917,2]
[312037303,1705567839636,-500.0,0.00021917,2]
[312037304,1705567839646,-500.0,0.00021917,2]
[312037305,1705567839655,-500.0,0.00021917,2]
[312037306,1705567839664,-500.0,0.00021917,2]
[312037307,1705567839673,-500.0,0.00021917,2]
[312037308,1705567839682,-500.0,0.00021917,2]
[312037309,1705567839694,-500.0,0.00021917,2]
[312037310,1705567839703,-500.0,0.00021917,2]
[312037311,1705567839712,-500.0,0.00021917,2]
[312037312,1705567839721,-500.0,0.00021917,2]
[312037313,1705567839731,-500.0,0.00021917,2]
[312037314,1705567839740,-511.37,0.00021917,2]
[312037315,1705567839749,-500.0,0.00021917,2]
[312037316,1705567839758,-500.0,0.00021917,2]
[312037317,1705567839768,-489.41,0.00021917,2]
[312037318,1705567839777,-500.0,0.00021917,2]
[312037319,1705567839786,-522.91270545,0.00021917,2]
[312037320,1705567839796,-500.0,0.00021917,2]
[312037321,1705567839805,-500.0,0.00021917,2]
[312037322,1705567839814,-297.7015032,0.00021917,2]
[312037323,1705567839823,-500.0,0.00021917,2]
[312037324,1705567839832,-500.0,0.00021917,2]
[312037325,1705567839841,-500.0,0.00021917,2]
[312037326,1705567839850,-500.0,0.00021917,2]
[312037328,1705567839860,-224.76,0.00021917,2]
[312037329,1705567839869,-568.32247372,0.00021917,2]
[312037330,1705567839878,-500.0,0.00021917,2]
[312037331,1705567839887,-500.0,0.00021917,2]
[312037332,1705567839897,-500.0,0.00021917,2]
[312037333,1705567839906,-500.0,0.00021917,2]
[312037334,1705567839915,-500.0,0.00021917,2]
[312037335,1705567839924,-500.0,0.00021917,2]
[312037336,1705567839933,-500.0,0.00021917,2]
[312037337,1705567839942,-602.1,0.00021917,2]
[312037338,1705567839951,-500.0,0.00021917,2]
[312037339,1705567839960,-500.0,0.00021917,2]
[312037340,1705567839970,-160.70320903,0.00021917,2]
[312037341,1705567839979,-500.0,0.00021917,2]
[312037342,1705567839989,-500.0,0.00021917,2]
[312037343,1705567839998,-423.63722183,0.00021917,2]
[312037344,1705567840007,-2573.5,0.00021917,2]
[312037345,1705567840016,-500.0,0.00021917,2]
[312037346,1705567840026,-500.0,0.00021917,2]
[312037347,1705567840035,-500.0,0.00021917,2]
[312037348,1705567840044,-295.31,0.00021917,2]
[312037349,1705567840055,-500.0,0.00021917,2]
[312037350,1705567840064,-637.9,0.00021917,2]
[312037351,1705567840074,-500.0,0.00021917,2]
[312037352,1705567840083,-536.63,0.00021917,2]
[312037353,1705567840092,-208.21119346,0.00021917,2]
[312037354,1705567840101,-552.38,0.00021917,2]
[312037355,1705567840110,-500.0,0.00021917,2]
[312037356,1705567840120,-500.0,0.00021917,2]
[312037357,1705567840129,-604.53,0.00021917,2]
[312037358,1705567840138,-506.20471805,0.00021917,2]
[312037359,1705567840147,-500.0,0.00021917,2]
[312037360,1705567840156,-500.0,0.00021917,2]
[312037361,1705567840165,-546.93489081,0.00021917,2]
[312037362,1705567840174,-500.0,0.00021917,2]
[312037363,1705567840183,-500.0,0.00021917,2]
[312037364,1705567840192,-500.0,0.00021917,2]
[312037365,1705567840202,-500.0,0.00021917,2]
[312037366,1705567840211,-500.0,0.00021917,2]
[312037367,1705567840220,-500.0,0.00021917,2]
[312037368,1705567840229,-383.53088115,0.00021917,2]
[312037369,1705567840238,-500.0,0.00021917,2]
[312037370,1705567840247,-500.0,0.00021917,2]
[312037371,1705567840256,-369.93,0.00021917,2]
[312037372,1705567840265,-500.0,0.00021917,2]
[312037373,1705567840274,-500.0,0.00021917,2]
[312037374,1705567840282,-500.0,0.00021917,2]
[312037375,1705567840292,-500.0,0.00021917,2]
[312037376,1705567840301,-368.93,0.00021917,2]
[312037377,1705567840310,-500.0,0.00021917,2]
[312037378,1705567840320,-461.97765079,0.00021917,2]
[312037379,1705567840330,-500.0,0.00021917,2]
[312037380,1705567840339,-500.0,0.00021917,2]
[312037381,1705567840348,-500.0,0.00021917,2]
[312037382,1705567840357,-500.0,0.00021917,2]
[312037383,1705567840366,-500.0,0.00021917,2]
[312037384,1705567840375,-500.0,0.00021917,2]
[312037385,1705567840384,-500.0,0.00021917,2]
[312037386,1705567840393,-500.0,0.00021917,2]
[312037387,1705567840402,-500.0,0.00021917,2]
[312037388,1705567840411,-383.64766056,0.00021917,2]
[312037389,1705567840421,-192.62174928,0.00021917,2]
[312037390,1705567840430,-649.17,0.00021917,2]
[312037391,1705567840439,-500.0,0.00021917,2]
[312037392,1705567840449,-500.0,0.00021917,2]
[312037393,1705567840458,-509.42,0.00021917,2]
[312037394,1705567840467,-500.0,0.00021917,2]
[312037395,1705567840476,-508.06361114,0.00021917,2]
[312037396,1705567840485,-346.90170283,0.00021917,2]
[312037398,1705567840495,-500.0,0.00021917,2]
[312037400,1705567840504,-500.0,0.00021917,2]
[312037402,1705567840513,-500.0,0.00021917,2]
[312037404,1705567840522,-500.0,0.00021917,2]
[312037406,1705567840531,-500.0,0.00021917,2]
[312037408,1705567840540,-500.0,0.00021917,2]
[312037410,1705567840549,-566.2,0.00021917,2]
[312037412,1705567840558,-500.0,0.00021917,2]
[312037414,1705567840567,-500.0,0.00021917,2]
[312037416,1705567840577,-500.0,0.00021917,2]
[312037418,1705567840586,-500.0,0.00021917,2]
[312037420,1705567840595,-500.0,0.00021917,2]